[Event "Chess Festival Groningen 2023 | A"]
[Site "Groningen, Netherlands"]
[Date "2023.12.29"]
[Round "8.26"]
[White "Bakija, Alan"]
[Black "Spit, Vincent"]
[Result "1/2-1/2"]
[TimeControl "90min/40moves + 30min + 30sec/move"]
[WhiteElo "2010"]
[BlackElo "2076"]

1. c4 {[%clk 01:30:57]} c5 {[%clk 01:30:46]} {[%emt 00:00:15]} 2. g3 {[%clk
01:31:24]} {[%emt 00:00:05]} g6 {[%clk 01:31:00]} {[%emt 00:00:23]} 3. Bg2
{[%clk 01:31:51]} Bg7 {[%clk 01:31:23]} {[%emt 00:00:04]} 4. Nc3 {[%clk
01:32:17]} {[%emt 00:00:09]} Nc6 {[%clk 01:31:14]} {[%emt 00:00:35]} 5. Nf3
{[%clk 01:32:39]} {[%emt 00:00:05]} Nf6 {[%clk 01:31:07]} {[%emt 00:00:36]} 6.
d4 {[%clk 01:29:54]} {[%emt 00:03:14]} cxd4 {[%clk 01:29:42]} {[%emt 00:01:55]}
7. Nxd4 {[%clk 01:30:16]} {[%emt 00:00:09]} O-O {[%clk 01:29:39]} {[%emt
00:00:37]} 8. O-O {[%clk 01:28:29]} {[%emt 00:02:13]} d6 {[%clk 01:27:27]}
{[%emt 00:02:42]} 9. Nxc6 {[%clk 01:20:19]} {[%emt 00:08:40]} bxc6 {[%clk
01:27:05]} {[%emt 00:00:51]} 10. Bxc6 {[%clk 01:20:06]} {[%emt 00:00:44]} Rb8
{[%clk 01:27:28]} {[%emt 00:00:07]} 11. Bg2 {[%clk 01:20:16]} {[%emt 00:00:19]}
Qa5 {[%clk 01:27:37]} {[%emt 00:00:21]} 12. Qd3 {[%clk 01:03:06]} {[%emt
00:17:41]} Bf5 {[%clk 01:26:07]} {[%emt 00:02:00]} 13. e4 {[%clk 01:01:33]}
{[%emt 00:02:05]} Be6 {[%clk 01:26:15]} {[%emt 00:00:20]} 14. b3 {[%clk
00:44:18]} {[%emt 00:22:11]} Nxe4 {[%clk 01:15:42]} {[%emt 00:06:36]} 15. Bxe4
{[%clk 00:43:54]} {[%emt 00:00:54]} Qxc3 {[%clk 01:10:31]} {[%emt 00:05:41]} 16.
Qxc3 {[%clk 00:43:11]} {[%emt 00:01:13]} Bxc3 {[%clk 01:10:54]} {[%emt
00:00:07]} 17. Rb1 {[%clk 00:38:52]} {[%emt 00:04:49]} Bf6 {[%clk 01:05:15]}
{[%emt 00:06:09]} 18. Bd2 {[%clk 00:34:58]} {[%emt 00:04:26]} h5 {[%clk
01:01:23]} {[%emt 00:04:19]} 19. h4 {[%clk 00:30:26]} {[%emt 00:05:06]} Rfd8
{[%clk 00:58:28]} {[%emt 00:03:21]} 20. Rfe1 {[%clk 00:27:02]} {[%emt
00:03:54]} Kg7 {[%clk 00:55:08]} {[%emt 00:03:50]} 21. Rbc1 {[%clk 00:26:23]}
{[%emt 00:01:08]} Rd7 {[%clk 00:51:00]} {[%emt 00:04:38]} 22. Bc3 {[%clk
00:20:49]} {[%emt 00:06:08]} Bxc3 {[%clk 00:46:32]} {[%emt 00:07:47]} 23. Rxc3
{[%clk 00:21:15]} a5 {[%clk 00:45:45]} 24. a3 {[%clk 00:18:41]} {[%emt
00:01:33]} Rc7 {[%clk 00:44:33]} {[%emt 00:01:42]} 25. Rec1 {[%clk 00:14:30]}
{[%emt 00:04:41]} Rbc8 {[%clk 00:41:51]} {[%emt 00:03:12]} 26. R3c2 {[%clk
00:14:21]} {[%emt 00:00:39]} Kf8 {[%clk 00:38:38]} {[%emt 00:03:43]} 27. Kf1
{[%clk 00:13:13]} {[%emt 00:01:38]} a4 {[%clk 00:35:37]} {[%emt 00:03:37]} 28.
bxa4 {[%clk 00:10:46]} {[%emt 00:02:51]} Bxc4+ {[%clk 00:33:33]} {[%emt
00:02:37]} 29. Kg1 {[%clk 00:09:20]} {[%emt 00:01:54]} e6 {[%clk 00:30:25]}
{[%emt 00:03:40]} 30. Bd3 {[%clk 00:05:32]} {[%emt 00:04:14]} d5 {[%clk
00:30:41]} {[%emt 00:00:14]} 31. a5 {[%clk 00:02:06]} {[%emt 00:03:55]} Ke7
{[%clk 00:29:24]} {[%emt 00:01:48]} 32. a6 {[%clk 00:02:32]} {[%emt 00:00:04]}
Kd6 {[%clk 00:27:40]} {[%emt 00:02:14]} 33. a7 {[%clk 00:01:28]} {[%emt
00:01:36]} Rxa7 {[%clk 00:27:44]} {[%emt 00:00:24]} 34. Bxc4 {[%clk 00:01:54]}
{[%emt 00:00:11]} Rxc4 {[%clk 00:27:52]} {[%emt 00:00:15]} 35. Rxc4 {[%clk
00:02:21]} {[%emt 00:00:06]} dxc4 {[%clk 00:28:16]} {[%emt 00:00:05]} 36. Rxc4
{[%clk 00:02:48]} {[%emt 00:00:04]} Rxa3 {[%clk 00:28:38]} {[%emt 00:00:10]} 37.
Rf4 {[%clk 00:03:08]} {[%emt 00:00:06]} Ke7 {[%clk 00:27:37]} {[%emt 00:01:35]}
38. Kg2 {[%clk 00:03:32]} {[%emt 00:00:04]} e5 {[%clk 00:26:38]} {[%emt
00:01:27]} 39. Rb4 {[%clk 00:03:58]} {[%emt 00:00:07]} f6 {[%clk 00:26:01]}
{[%emt 00:01:08]} 40. Rb6 {[%clk 00:04:14]} {[%emt 00:00:09]} Rd3 {[%clk
00:26:06]} {[%emt 00:00:25]} 41. Ra6 {[%clk 00:03:25]} {[%emt 00:01:26]} Rd6
{[%clk 00:24:05]} {[%emt 00:02:29]} 42. Ra5 {[%clk 00:03:47]} {[%emt 00:00:05]}
Ke6 {[%clk 00:24:23]} {[%emt 00:00:10]} 43. Rb5 {[%clk 00:04:06]} {[%emt
00:00:11]} Kf5 {[%clk 00:24:12]} {[%emt 00:00:41]} 44. Ra5 {[%clk 00:04:26]}
{[%emt 00:00:11]} g5 {[%clk 00:22:35]} {[%emt 00:02:06]} 45. hxg5 {[%clk
00:04:17]} {[%emt 00:00:42]} Kxg5 {[%clk 00:21:52]} {[%emt 00:01:11]} 46. Rb5
{[%clk 00:03:28]} {[%emt 00:01:17]} Rd2 {[%clk 00:20:32]} {[%emt 00:01:51]} 47.
Ra5 {[%clk 00:03:38]} {[%emt 00:00:24]} h4 {[%clk 00:20:12]} {[%emt 00:00:48]}
48. gxh4+ {[%clk 00:02:58]} {[%emt 00:01:14]} Kxh4 {[%clk 00:20:33]} {[%emt
00:00:04]} 49. Ra4+ {[%clk 00:30:08]} {[%emt 00:03:19]} Kg5 {[%clk 00:49:36]}
{[%emt 00:01:27]} 50. Kg3 {[%clk 00:29:30]} {[%emt 00:01:10]} Rd4 {[%clk
00:48:15]} {[%emt 00:01:50]} 51. Ra8 {[%clk 00:29:13]} {[%emt 00:00:47]} Rd3+
{[%clk 00:48:31]} {[%emt 00:00:16]} 52. Kg2 {[%clk 00:29:16]} {[%emt 00:00:23]}
Kf4 {[%clk 00:48:21]} {[%emt 00:00:40]} 53. Ra4+ {[%clk 00:29:19]} {[%emt
00:00:28]} Rd4 {[%clk 00:48:22]} {[%emt 00:00:29]} 54. Ra3 {[%clk 00:29:37]}
{[%emt 00:00:12]} e4 {[%clk 00:48:00]} {[%emt 00:00:53]} 55. Rb3 {[%clk
00:27:10]} {[%emt 00:02:57]} f5 {[%clk 00:48:02]} {[%emt 00:00:26]} 56. Ra3
{[%clk 00:20:53]} {[%emt 00:06:47]} Rd3 {[%clk 00:47:54]} {[%emt 00:01:24]} 57.
Ra5 {[%clk 00:20:42]} {[%emt 00:00:04]} Kg4 {[%clk 00:47:52]} {[%emt 00:00:24]}
58. Ra4 {[%clk 00:20:58]} {[%emt 00:00:15]} Rd2 {[%clk 00:47:45]} {[%emt
00:00:41]} 59. Rb4 {[%clk 00:13:24]} {[%emt 00:08:08]} Re2 {[%clk 00:44:38]}
{[%emt 00:03:28]} 60. Kf1 {[%clk 00:11:52]} {[%emt 00:02:06]} Rd2 {[%clk
00:44:46]} {[%emt 00:00:19]} 61. Kg2 {[%clk 00:12:11]} {[%emt 00:00:10]} Kf4
{[%clk 00:44:48]} {[%emt 00:00:28]} 62. Ra4 {[%clk 00:03:43]} {[%emt 00:08:58]}
Ke5 {[%clk 00:44:46]} {[%emt 00:00:35]} 63. Ra5+ {[%clk 00:01:53]} {[%emt
00:02:18]} Rd5 {[%clk 00:45:07]} {[%emt 00:00:09]} 64. Ra8 {[%clk 00:00:38]}
{[%emt 00:01:44]} f4 {[%clk 00:44:40]} {[%emt 00:00:58]} 65. Re8+ {[%clk
00:00:39]} {[%emt 00:00:28]} Kd4 {[%clk 00:44:57]} {[%emt 00:00:13]} 66. Kf1
{[%clk 00:00:44]} {[%emt 00:00:25]} Kd3 {[%clk 00:44:01]} {[%emt 00:01:25]} 67.
Ke1 {[%clk 00:00:53]} {[%emt 00:00:23]} Ra5 {[%clk 00:42:38]} {[%emt 00:01:53]}
68. Rd8+ {[%clk 00:01:09]} {[%emt 00:00:13]} Kc4 {[%clk 00:42:59]} {[%emt
00:00:09]} 69. f3 {[%clk 00:00:37]} {[%emt 00:01:05]} Ra1+ {[%clk 00:40:26]}
{[%emt 00:03:03]} 70. Ke2 {[%clk 00:00:46]} {[%emt 00:00:17]} Ra2+ {[%clk
00:40:49]} {[%emt 00:00:08]} 71. Ke1 {[%clk 00:00:53]} {[%emt 00:00:23]} e3
{[%clk 00:37:18]} {[%emt 00:04:07]} 72. Rf8 {[%clk 00:01:20]} Kd4 {[%clk
00:37:31]} {[%emt 00:00:15]} 73. Rd8+ {[%clk 00:01:28]} {[%emt 00:00:21]} Ke5
{[%clk 00:36:58]} {[%emt 00:01:07]} 74. Re8+ {[%clk 00:01:56]} {[%emt
00:00:04]} Kf5 {[%clk 00:36:41]} {[%emt 00:00:42]} 75. Rf8+ {[%clk 00:02:23]}
{[%emt 00:00:06]} Kg5 {[%clk 00:37:00]} {[%emt 00:00:07]} 76. Rg8+ {[%clk
00:02:42]} {[%emt 00:00:11]} Kh6 {[%clk 00:37:07]} {[%emt 00:00:23]} 77. Rg4
{[%clk 00:02:37]} {[%emt 00:00:39]} Ra4 {[%clk 00:36:56]} {[%emt 00:00:38]} 78.
Ke2 {[%clk 00:02:53]} {[%emt 00:00:18]} Kh5 {[%clk 00:36:56]} {[%emt 00:00:24]}
79. Ke1 {[%clk 00:03:17]} {[%emt 00:00:07]} Rd4 {[%clk 00:36:27]} {[%emt
00:00:58]} 80. Ke2 {[%clk 00:03:31]} {[%emt 00:00:16]} Re4 {[%clk 00:35:33]}
{[%emt 00:01:24]} 81. Kd1 {[%clk 00:02:25]} {[%emt 00:01:36]} Rd4+ {[%clk
00:35:22]} {[%emt 00:00:45]} 82. Ke1 {[%clk 00:02:43]} {[%emt 00:00:07]} Re4
{[%clk 00:35:29]} {[%emt 00:00:24]} 83. Kd1 {[%clk 00:02:18]} {[%emt 00:00:59]}
Rd4+ {[%clk 00:35:22]} {[%emt 00:00:35]} 84. Ke1 {[%clk 00:02:24]} {[%emt
00:00:22]} Re4 {[%clk 00:35:44]} {[%emt 00:00:08]} 1/2-1/2

[Event "Chess Festival Groningen 2023 | A"]
[Site "Groningen, Netherlands"]
[Date "2023.12.29"]
[Round "8.27"]
[White "Arnold, Rhys"]
[Black "De Jong, Mathijs"]
[Result "1-0"]
[TimeControl "90min/40moves + 30min + 30sec/move"]
[WhiteElo "2053"]
[BlackElo "2008"]

1. e4 {[%clk 01:30:59]} d5 {[%clk 01:30:55]} 2. exd5 {[%clk 01:31:26]} {[%emt
00:00:21]} Qxd5 {[%clk 01:31:19]} 3. Nc3 {[%clk 01:31:54]} Qd8 {[%clk
01:31:43]} 4. d4 {[%clk 01:32:20]} {[%emt 00:00:03]} Nf6 {[%clk 01:32:08]} 5.
Nf3 {[%clk 01:32:46]} {[%emt 00:00:03]} Bg4 {[%clk 01:32:32]} {[%emt 00:00:19]}
6. h3 {[%clk 01:33:14]} Bxf3 {[%clk 01:32:55]} 7. Qxf3 {[%clk 01:33:41]} {[%emt
00:00:03]} c6 {[%clk 01:33:19]} {[%emt 00:00:08]} 8. g4 {[%clk 01:33:47]}
{[%emt 00:00:17]} h6 {[%clk 01:25:20]} {[%emt 00:08:29]} 9. Be3 {[%clk
01:16:50]} {[%emt 00:17:51]} e6 {[%clk 01:22:10]} {[%emt 00:03:20]} 10. O-O-O
{[%emt 00:09:59]} Bb4 {[%emt 00:04:27]} 11. g5 {[%clk 01:04:09]} {[%emt
00:03:37]} hxg5 {[%emt 00:03:12]} 12. Bxg5 {[%clk 01:03:14]} {[%emt 00:00:24]}
Bxc3 {[%clk 01:16:43]} {[%emt 00:00:34]} 13. bxc3 {[%clk 01:01:18]} Qd5 {[%emt
00:05:00]} 14. Qxd5 cxd5 15. Bxf6 gxf6 16. c4 dxc4 17. d5 Nd7 18. Bxc4 Nb6 19.
Bb5+ Ke7 20. dxe6 fxe6 21. h4 Rac8 22. Rdg1 Rh7 23. Rg3 Nd5 24. Kb2 a6 25. Bd3
f5 26. a4 Nb4 27. Kb3 Nxd3 28. Rxd3 e5 29. Rhd1 Rxh4 30. Rd7+ Kf6 31. Rxb7 Rc6
32. Rd2 Rhc4 33. Rb4 Rxb4+ 34. Kxb4 f4 35. c4 e4 36. c5 Ke5 37. Re2 Rc8 38. Kc4
Rd8 39. c6 Rc8 40. Kc5 Rf8 41. c7 e3 42. a5 Ke4 43. fxe3 f3 44. Re1 f2 45. Rf1
Kxe3 46. Kb6 Rf6+ 47. Kb7 Rf7 {[%clk 01:14:25]} 48. Kb8 {[%clk 01:01:42]} 1-0

[Event "Chess Festival Groningen 2023 | A"]
[Site "Groningen, Netherlands"]
[Date "2023.12.29"]
[Round "8.28"]
[White "Goudriaan, Rafael"]
[Black "Ter-Avetisjana, Agnesa Stepania"]
[Result "1-0"]
[TimeControl "90min/40moves + 30min + 30sec/move"]
[BlackFideId "11614900"]
[WhiteElo "2039"]
[BlackElo "1974"]

1. e4 {[%clk 01:30:58]} {[%emt 00:00:12]} c6 {[%clk 01:30:54]} 2. d4 {[%clk
01:31:17]} {[%emt 00:00:08]} d5 {[%clk 01:31:19]} {[%emt 00:00:07]} 3. e5
{[%clk 01:31:42]} {[%emt 00:00:11]} Bf5 {[%clk 01:31:43]} {[%emt 00:00:16]} 4.
Nd2 {[%clk 01:31:47]} {[%emt 00:00:08]} e6 {[%clk 01:32:06]} {[%emt 00:00:23]}
5. Nb3 {[%clk 01:32:12]} Nd7 {[%clk 01:32:29]} {[%emt 00:00:10]} 6. Nf3 {[%clk
01:32:36]} c5 {[%clk 01:32:48]} {[%emt 00:00:10]} 7. dxc5 {[%clk 01:32:51]}
{[%emt 00:00:09]} Bxc5 {[%clk 01:33:11]} {[%emt 00:00:08]} 8. Nxc5 {[%clk
01:33:15]} {[%emt 00:00:08]} Nxc5 {[%clk 01:33:33]} {[%emt 00:00:07]} 9. Bb5+
{[%clk 01:27:54]} {[%emt 00:05:48]} Nd7 {[%clk 01:33:57]} {[%emt 00:00:20]} 10.
O-O {[%clk 01:27:29]} {[%emt 00:01:20]} a6 {[%clk 01:33:17]} {[%emt 00:00:31]}
11. Be2 {[%clk 01:27:11]} {[%emt 00:00:47]} Qc7 {[%clk 01:32:40]} {[%emt
00:01:08]} 12. Nd4 {[%clk 01:23:57]} {[%emt 00:03:47]} Bg6 {[%clk 01:26:14]}
{[%emt 00:06:56]} 13. f4 {[%clk 01:20:36]} {[%emt 00:03:50]} Qb6 {[%clk
01:19:18]} {[%emt 00:07:31]} 14. Be3 {[%clk 01:17:53]} {[%emt 00:03:04]} Qxb2
{[%clk 01:14:27]} {[%emt 00:05:40]} 15. Rb1 {[%clk 01:14:49]} {[%emt 00:03:15]}
Qc3 {[%clk 01:13:36]} {[%emt 00:01:22]} 16. Rb3 {[%clk 01:14:50]} {[%emt
00:00:30]} Qc7 {[%clk 01:13:55]} {[%emt 00:00:45]} 17. g4 {[%clk 00:49:36]}
{[%emt 00:25:08]} Be4 {[%clk 01:11:24]} {[%emt 00:03:04]} 18. f5 {[%clk
00:49:09]} {[%emt 00:00:54]} Nxe5 {[%clk 01:00:40]} {[%emt 00:11:14]} 19. fxe6
{[%clk 00:46:54]} {[%emt 00:02:56]} f6 {[%clk 01:00:58]} {[%emt 00:00:04]} 20.
Nf5 {[%clk 00:26:01]} {[%emt 00:21:23]} Bxf5 {[%clk 00:54:09]} {[%emt
00:07:18]} 21. gxf5 {[%clk 00:26:21]} {[%emt 00:00:17]} Ne7 {[%clk 00:52:41]}
{[%emt 00:02:05]} 22. Bb6 {[%clk 00:24:50]} {[%emt 00:01:44]} Qc6 {[%clk
00:50:10]} {[%emt 00:03:01]} 23. Bd4 {[%clk 00:24:54]} {[%emt 00:00:36]} Rc8
{[%clk 00:46:51]} {[%emt 00:03:41]} 24. Rc3 {[%clk 00:22:01]} {[%emt 00:04:04]}
Qd6 {[%clk 00:42:37]} {[%emt 00:04:08]} 25. Rg3 {[%clk 00:22:13]} {[%emt
00:00:11]} O-O {[%clk 00:39:34]} {[%emt 00:03:39]} 26. Bh5 {[%clk 00:18:20]}
{[%emt 00:04:59]} Rc4 {[%clk 00:31:36]} {[%emt 00:07:50]} 27. Rf4 {[%clk
00:10:51]} {[%emt 00:07:56]} N7c6 {[%clk 00:26:53]} {[%emt 00:05:13]} 28. c3
{[%clk 00:09:04]} {[%emt 00:02:17]} Nxd4 {[%clk 00:17:16]} {[%emt 00:10:09]} 29.
cxd4 {[%clk 00:03:41]} {[%emt 00:06:31]} Qc7 {[%clk 00:16:46]} {[%emt
00:00:19]} 30. Rf1 {[%clk 00:03:35]} {[%emt 00:00:37]} Nc6 {[%clk 00:10:06]}
{[%emt 00:07:10]} 31. Re1 {[%clk 00:02:12]} {[%emt 00:01:54]} Rxd4 {[%clk
00:01:33]} {[%emt 00:09:09]} 32. Qxd4 {[%clk 00:01:47]} {[%emt 00:00:46]} Nxd4
{[%clk 00:02:02]} {[%emt 00:00:10]} 33. e7 {[%clk 00:02:10]} {[%emt 00:00:03]}
g5 {[%clk 00:00:34]} {[%emt 00:02:04]} 34. fxg6 {[%clk 00:01:32]} {[%emt
00:00:56]} Qc5 {[%clk 00:00:40]} {[%emt 00:00:27]} 35. exf8=Q+ {[%clk
00:01:10]} {[%emt 00:00:55]} Qxf8 {[%clk 00:00:56]} {[%emt 00:00:09]} 36. g7
{[%clk 00:01:21]} {[%emt 00:00:33]} Nf3+ {[%clk 00:00:59]} {[%emt 00:00:13]} 37.
Kh1 {[%clk 00:01:17]} {[%emt 00:00:34]} Qb4 {[%clk 00:00:54]} {[%emt 00:00:45]}
38. Re8+ {[%clk 00:01:39]} {[%emt 00:00:04]} Qf8 {[%clk 00:01:20]} 39. Rxf8#
{[%clk 00:02:03]} {[%emt 00:00:12]} 1-0

[Event "Chess Festival Groningen 2023 | A"]
[Site "Groningen, Netherlands"]
[Date "2023.12.29"]
[Round "8.29"]
[White "Vijayakumar, Rishi"]
[Black "Kumar, Prajit Sai"]
[Result "1-0"]
[TimeControl "90min/40moves + 30min + 30sec/move"]
[WhiteElo "2104"]
[BlackElo "2172"]

1. d4 {[%clk 01:30:58]} d5 {[%clk 01:30:51]} {[%emt 00:00:15]} 2. c4 {[%clk
01:31:26]} e6 {[%clk 01:31:12]} 3. Nc3 {[%clk 01:31:53]} c5 {[%clk 01:30:16]}
{[%emt 00:01:25]} 4. cxd5 {[%clk 01:31:48]} {[%emt 00:01:13]} exd5 {[%clk
01:30:42]} 5. Nf3 {[%clk 01:32:11]} Nc6 {[%clk 01:31:06]} {[%emt 00:00:11]} 6.
dxc5 {[%clk 01:31:32]} {[%emt 00:00:36]} d4 {[%clk 01:31:13]} {[%emt 00:00:27]}
7. Na4 {[%clk 01:31:55]} {[%emt 00:00:07]} Bxc5 {[%clk 01:31:28]} {[%emt
00:00:30]} 8. Nxc5 Qa5+ {[%clk 01:31:49]} 9. Bd2 {[%clk 01:32:33]} {[%emt
00:00:20]} Qxc5 {[%clk 01:32:13]} {[%emt 00:00:04]} 10. Rc1 {[%clk 01:32:57]}
{[%emt 00:00:10]} Qb6 {[%clk 01:32:08]} {[%emt 00:00:29]} 11. e3 {[%clk
01:32:53]} {[%emt 00:00:31]} Nf6 {[%clk 01:32:32]} {[%emt 00:00:29]} 12. Bc4
{[%clk 01:32:45]} {[%emt 00:00:14]} O-O {[%clk 01:31:12]} {[%emt 00:01:49]} 13.
O-O {[%clk 01:32:43]} {[%emt 00:00:35]} dxe3 {[%clk 01:29:15]} {[%emt
00:02:26]} 14. Bxe3 {[%clk 01:31:42]} {[%emt 00:01:33]} Qa5 {[%clk 01:27:52]}
{[%emt 00:01:53]} 15. Bc5 {[%clk 00:57:19]} {[%emt 00:34:51]} Re8 {[%clk
01:18:55]} {[%emt 00:09:26]} 16. b4 {[%clk 00:55:41]} {[%emt 00:02:09]} Qc7
{[%clk 01:14:04]} {[%emt 00:05:21]} 17. Bd6 {[%clk 00:40:09]} {[%emt 00:16:00]}
Qd8 {[%clk 01:08:16]} {[%emt 00:06:22]} 18. Ng5 {[%clk 00:29:49]} {[%emt
00:10:55]} Be6 {[%clk 01:08:30]} {[%emt 00:00:11]} 19. Nxe6 {[%clk 00:30:18]}
fxe6 {[%clk 01:08:51]} {[%emt 00:00:12]} 20. b5 {[%clk 00:25:12]} {[%emt
00:06:01]} Na5 {[%clk 01:08:49]} {[%emt 00:00:08]} 21. Bd3 {[%clk 00:25:21]}
{[%emt 00:00:19]} Rc8 {[%clk 01:08:28]} {[%emt 00:00:47]} 22. Rxc8 {[%clk
00:23:37]} {[%emt 00:02:14]} Qxc8 {[%clk 01:08:51]} {[%emt 00:00:35]} 23. Be5
{[%clk 00:21:31]} {[%emt 00:02:12]} Qd8 {[%clk 01:08:07]} {[%emt 00:01:11]} 24.
Qc2 {[%clk 00:21:16]} {[%emt 00:00:45]} Qe7 {[%clk 01:08:13]} {[%emt 00:00:23]}
25. Re1 {[%clk 00:18:55]} {[%emt 00:03:26]} Qf7 {[%clk 01:06:39]} {[%emt
00:01:29]} 26. h3 {[%clk 00:15:04]} {[%emt 00:04:22]} b6 {[%clk 01:05:38]}
{[%emt 00:01:31]} 27. Re3 {[%clk 00:13:07]} {[%emt 00:02:33]} Kh8 {[%clk
01:05:57]} {[%emt 00:00:07]} 28. Rf3 {[%clk 00:07:36]} {[%emt 00:05:59]} Qe7
{[%clk 01:05:51]} {[%emt 00:00:36]} 29. Qc3 {[%clk 00:05:32]} {[%emt 00:02:51]}
Rf8 {[%clk 01:05:44]} {[%emt 00:00:23]} 30. Qd4 {[%clk 00:04:26]} {[%emt
00:01:33]} Nb7 {[%clk 01:05:06]} {[%emt 00:01:08]} 31. Qh4 {[%clk 00:04:39]}
{[%emt 00:00:19]} Rf7 {[%clk 01:04:35]} {[%emt 00:01:02]} 32. Bg6 {[%clk
00:04:37]} {[%emt 00:00:29]} Rf8 {[%clk 01:04:11]} {[%emt 00:01:00]} 33. Bxh7
{[%clk 00:04:37]} {[%emt 00:00:25]} Nd6 {[%clk 01:02:55]} {[%emt 00:01:44]} 34.
Bg6+ {[%clk 00:04:37]} {[%emt 00:00:36]} Kg8 {[%clk 01:03:21]} 35. Bxf6 {[%clk
00:03:54]} {[%emt 00:01:14]} gxf6 {[%clk 01:03:44]} {[%emt 00:00:06]} 36. Rg3
{[%clk 00:04:03]} {[%emt 00:00:21]} Rf7 {[%clk 01:03:38]} {[%emt 00:00:34]} 37.
Bxf7+ {[%clk 00:04:16]} {[%emt 00:00:52]} Kxf7 {[%clk 01:04:03]} 38. Qh5+
{[%clk 00:04:38]} {[%emt 00:00:04]} Kf8 {[%clk 01:04:28]} 39. Qh8+ {[%emt
00:00:18]} 1-0